[Event "Titled Tuesday Blitz February 14 Late 2023"]
[White "Bujisho, Benjamin"]
[Black "Mikhalsky, Vladimir"]
[WhiteFideId "608610"]
[BlackFideId "14144352"]
[WhiteElo "2338"]
[BlackElo "2219"]
[Result "1-0"]
[Round "04"]
[TimeControl "180+2"]
[Date "2023.02.14"]
[WhiteClock "0:00:17"]
[BlackClock "0:00:03"]

1. d4 {[%clk 0:03:00]}  Nf6 {[%clk 0:02:41]} 2. c4 {[%clk 0:02:59]}  g6 {[%clk 0:02:40]} 3. Nc3 {[%clk 0:02:58]}  Bg7 {[%clk 0:02:40]} 4. h4 {[%clk 0:02:59]}  d5 {[%clk 0:02:34]} 5. h5 {[%clk 0:02:57]}  Nxh5 {[%clk 0:02:32]} 6. cxd5 {[%clk 0:02:55]}  c6 {[%clk 0:02:28]} 7. dxc6 {[%clk 0:02:45]}  Nxc6 {[%clk 0:02:26]} 8. e3 {[%clk 0:02:45]}  Nf6 {[%clk 0:02:16]} 9. Nf3 {[%clk 0:02:44]}  O-O {[%clk 0:02:14]} 10. Be2 {[%clk 0:02:43]}  a6 {[%clk 0:02:10]} 11. O-O {[%clk 0:02:41]}  Qc7 {[%clk 0:02:10]} 12. b3 {[%clk 0:02:34]}  Nxd4 {[%clk 0:01:54]} 13. Qxd4 {[%clk 0:02:33]}  Ng4 {[%clk 0:01:53]} 14. Nd5 {[%clk 0:02:27]}  Qd6 {[%clk 0:01:40]} 15. Qxg7+ {[%clk 0:01:39]}  Kxg7 {[%clk 0:01:36]} 16. Bb2+ {[%clk 0:01:40]}  f6 {[%clk 0:01:22]} 17. Rfd1 {[%clk 0:01:38]}  Ne5 {[%clk 0:00:54]} 18. Nxe5 {[%clk 0:01:25]}  fxe5 {[%clk 0:00:54]} 19. f4 {[%clk 0:01:26]}  Qc5 {[%clk 0:00:49]} 20. Bxe5+ {[%clk 0:01:24]}  Kf7 {[%clk 0:00:44]} 21. Rac1 {[%clk 0:01:22]}  Qa5 {[%clk 0:00:40]} 22. Rc7 {[%clk 0:01:16]}  Re8 {[%clk 0:00:35]} 23. a4 {[%clk 0:01:03]}  Be6 {[%clk 0:00:28]} 24. Bc4 {[%clk 0:01:03]}  Rac8 {[%clk 0:00:22]} 25. Rxb7 {[%clk 0:00:57]}  Rxc4 {[%clk 0:00:21]} 26. bxc4 {[%clk 0:00:57]}  Bxd5 {[%clk 0:00:20]} 27. cxd5 {[%clk 0:00:52]}  Qxa4 {[%clk 0:00:19]} 28. Rd3 {[%clk 0:00:44]}  Qe4 {[%clk 0:00:19]} 29. Rbb3 {[%clk 0:00:39]}  Rd8 {[%clk 0:00:18]} 30. Rd4 {[%clk 0:00:33]}  Qc2 {[%clk 0:00:18]} 31. Rbd3 {[%clk 0:00:33]}  Qb1+ {[%clk 0:00:17]} 32. Kh2 {[%clk 0:00:33]}  Rd7 {[%clk 0:00:18]} 33. e4 {[%clk 0:00:33]}  Qb5 {[%clk 0:00:17]} 34. Rf3 {[%clk 0:00:31]}  a5 {[%clk 0:00:16]} 35. f5 {[%clk 0:00:31]}  g5 {[%clk 0:00:15]} 36. f6 {[%clk 0:00:31]}  exf6 {[%clk 0:00:13]} 37. Rxf6+ {[%clk 0:00:31]}  Ke8 {[%clk 0:00:13]} 38. Rd2 {[%clk 0:00:31]}  Rf7 {[%clk 0:00:13]} 39. Re6+ {[%clk 0:00:29]}  Kd7 {[%clk 0:00:13]} 40. Rc2 {[%clk 0:00:28]}  Qd3 {[%clk 0:00:10]} 41. Rd6+ {[%clk 0:00:18]}  Ke7 {[%clk 0:00:10]} 42. Rc7+ {[%clk 0:00:16]}  Ke8 {[%clk 0:00:10]} 43. Re6+ {[%clk 0:00:16]}  Kd8 {[%clk 0:00:07]} 44. Rxf7 {[%clk 0:00:16]}  Qxe4 {[%clk 0:00:07]} 45. Bf6+ {[%clk 0:00:16]}  Kc8 {[%clk 0:00:03]} 46. Rxe4 {[%clk 0:00:17]} 1-0


[Site "https://www.chess.com"]

[Event "Titled Tuesday Blitz February 14 Late 2023"]
[White "Papp, Levente"]
[Black "Hoffmann, Asa"]
[WhiteFideId "751243"]
[BlackFideId "2001470"]
[WhiteElo "2353"]
[BlackElo "2185"]
[Result "1/2-1/2"]
[Round "04"]
[TimeControl "180+2"]
[Date "2023.02.14"]
[WhiteClock "0:00:04"]
[BlackClock "0:00:28"]

1. b3 {[%clk 0:03:00]}  d6 {[%clk 0:02:59]} 2. d4 {[%clk 0:02:57]}  Nd7 {[%clk 0:02:57]} 3. Nf3 {[%clk 0:02:55]}  Ngf6 {[%clk 0:02:57]} 4. Bb2 {[%clk 0:02:54]}  b6 {[%clk 0:02:57]} 5. g3 {[%clk 0:02:54]}  Bb7 {[%clk 0:02:57]} 6. Bg2 {[%clk 0:02:55]}  g6 {[%clk 0:02:57]} 7. O-O {[%clk 0:02:54]}  Bg7 {[%clk 0:02:56]} 8. c4 {[%clk 0:02:54]}  O-O {[%clk 0:02:55]} 9. d5 {[%clk 0:02:54]}  a5 {[%clk 0:02:53]} 10. Qc2 {[%clk 0:02:48]}  Nc5 {[%clk 0:02:53]} 11. Nbd2 {[%clk 0:02:42]}  e5 {[%clk 0:02:50]} 12. dxe6 {[%clk 0:02:39]}  fxe6 {[%clk 0:02:49]} 13. Rad1 {[%clk 0:02:36]}  e5 {[%clk 0:02:47]} 14. Ng5 {[%clk 0:02:23]}  Bxg2 {[%clk 0:02:41]} 15. Kxg2 {[%clk 0:02:24]}  Qe8 {[%clk 0:02:38]} 16. Nge4 {[%clk 0:02:22]}  Qc6 {[%clk 0:02:36]} 17. f3 {[%clk 0:02:22]}  Nfxe4 {[%clk 0:02:35]} 18. Nxe4 {[%clk 0:02:21]}  Nxe4 {[%clk 0:02:34]} 19. Qxe4 {[%clk 0:02:21]}  Qxe4 {[%clk 0:02:33]} 20. fxe4 {[%clk 0:02:22]}  Bh6 {[%clk 0:02:29]} 21. Rf3 {[%clk 0:02:20]}  Rf7 {[%clk 0:02:24]} 22. Rd5 {[%clk 0:02:12]}  Raf8 {[%clk 0:02:21]} 23. a3 {[%clk 0:02:10]}  Rf6 {[%clk 0:02:15]} 24. Rd1 {[%clk 0:02:07]}  Kf7 {[%clk 0:02:07]} 25. Ra1 {[%clk 0:01:51]}  Ke6 {[%clk 0:02:04]} 26. b4 {[%clk 0:01:49]}  Ra8 {[%clk 0:02:02]} 27. b5 {[%clk 0:01:35]}  Rc8 {[%clk 0:01:54]} 28. Bc1 {[%clk 0:01:22]}  Bxc1 {[%clk 0:01:50]} 29. Rxc1 {[%clk 0:01:23]}  Rxf3 {[%clk 0:01:50]} 30. exf3 {[%clk 0:01:23]}  c6 {[%clk 0:01:50]} 31. bxc6 {[%clk 0:01:09]}  Rxc6 {[%clk 0:01:49]} 32. a4 {[%clk 0:01:09]}  Rc8 {[%clk 0:01:38]} 33. Kf2 {[%clk 0:01:09]}  Kd7 {[%clk 0:01:38]} 34. Ke3 {[%clk 0:01:07]}  Kc6 {[%clk 0:01:38]} 35. Rb1 {[%clk 0:01:03]}  Rb8 {[%clk 0:01:30]} 36. Rb5 {[%clk 0:00:57]}  Rf8 {[%clk 0:01:27]} 37. f4 {[%clk 0:00:55]}  exf4+ {[%clk 0:01:24]} 38. gxf4 {[%clk 0:00:56]}  Re8 {[%clk 0:01:21]} 39. h4 {[%clk 0:00:54]}  Re7 {[%clk 0:01:20]} 40. h5 {[%clk 0:00:51]}  Re6 {[%clk 0:01:15]} 41. Rg5 {[%clk 0:00:45]}  Rf6 {[%clk 0:01:11]} 42. Rd5 {[%clk 0:00:31]}  Re6 {[%clk 0:01:10]} 43. Rb5 {[%clk 0:00:30]}  Rf6 {[%clk 0:01:10]} 44. Rg5 {[%clk 0:00:30]}  Re6 {[%clk 0:01:09]} 45. Kd4 {[%clk 0:00:21]}  Rf6 {[%clk 0:01:07]} 46. f5 {[%clk 0:00:15]}  gxf5 {[%clk 0:01:03]} 47. Rxf5 {[%clk 0:00:15]}  Re6 {[%clk 0:00:55]} 48. Ke3 {[%clk 0:00:13]}  Re5 {[%clk 0:00:52]} 49. Kf4 {[%clk 0:00:10]}  Rc5 {[%clk 0:00:46]} 50. h6 {[%clk 0:00:09]}  Rxc4 {[%clk 0:00:45]} 51. Rf7 {[%clk 0:00:09]}  d5 {[%clk 0:00:45]} 52. Rxh7 {[%clk 0:00:07]}  Rxe4+ {[%clk 0:00:45]} 53. Kf5 {[%clk 0:00:08]}  Rh4 {[%clk 0:00:44]} 54. Rh8 {[%clk 0:00:07]}  Kc5 {[%clk 0:00:44]} 55. Kg6 {[%clk 0:00:07]}  Kb4 {[%clk 0:00:43]} 56. Rb8 {[%clk 0:00:07]}  Kxa4 {[%clk 0:00:40]} 57. Rxb6 {[%clk 0:00:07]}  d4 {[%clk 0:00:40]} 58. h7 {[%clk 0:00:05]}  d3 {[%clk 0:00:39]} 59. Kg7 {[%clk 0:00:05]}  d2 {[%clk 0:00:36]} 60. Rd6 {[%clk 0:00:06]}  Rg4+ {[%clk 0:00:32]} 61. Kf7 {[%clk 0:00:06]}  Rf4+ {[%clk 0:00:32]} 62. Kg8 {[%clk 0:00:04]}  Rg4+ {[%clk 0:00:32]} 63. Kf8 {[%clk 0:00:04]}  Rf4+ {[%clk 0:00:32]} 64. Kg7 {[%clk 0:00:05]}  Rh4 {[%clk 0:00:31]} 65. Rxd2 {[%clk 0:00:03]}  Kb3 {[%clk 0:00:31]} 66. Rd6 {[%clk 0:00:03]}  a4 {[%clk 0:00:31]} 67. Rh6 {[%clk 0:00:04]}  Rg4+ {[%clk 0:00:30]} 68. Kf6 {[%clk 0:00:04]}  Rf4+ {[%clk 0:00:30]} 69. Ke5 {[%clk 0:00:04]}  Rf8 {[%clk 0:00:29]} 70. h8=Q {[%clk 0:00:04]}  Rxh8 {[%clk 0:00:29]} 71. Rxh8 {[%clk 0:00:05]}  a3 {[%clk 0:00:29]} 72. Rb8+ {[%clk 0:00:05]}  Kc2 {[%clk 0:00:29]} 73. Ra8 {[%clk 0:00:04]}  Kb2 {[%clk 0:00:28]} 74. Rb8+ {[%clk 0:00:05]}  Kc2 {[%clk 0:00:28]} 75. Rc8+ {[%clk 0:00:04]}  Kb2 {[%clk 0:00:28]} 76. Rb8+ {[%clk 0:00:04]}  Kc2 {[%clk 0:00:28]} 1/2-1/2


[Site "https://www.chess.com"]

[Event "Titled Tuesday Blitz February 14 Late 2023"]
[White "Gerbelli Neto, Eduardo"]
[Black "Cori T., Deysi"]
[WhiteFideId "2103281"]
[BlackFideId "3801934"]
[WhiteElo "2114"]
[BlackElo "2362"]
[Result "0-1"]
[Round "04"]
[TimeControl "180+2"]
[Date "2023.02.14"]
[WhiteClock "0:00:59"]
[BlackClock "0:00:53"]

1. e4 {[%clk 0:03:00]}  e6 {[%clk 0:02:59]} 2. d4 {[%clk 0:03:00]}  d5 {[%clk 0:02:59]} 3. Nc3 {[%clk 0:03:00]}  Nf6 {[%clk 0:02:59]} 4. e5 {[%clk 0:02:59]}  Nfd7 {[%clk 0:02:59]} 5. Nf3 {[%clk 0:02:59]}  c5 {[%clk 0:02:59]} 6. dxc5 {[%clk 0:03:00]}  Nc6 {[%clk 0:03:00]} 7. Bf4 {[%clk 0:03:00]}  Bxc5 {[%clk 0:02:59]} 8. Bd3 {[%clk 0:02:58]}  h6 {[%clk 0:02:58]} 9. O-O {[%clk 0:02:58]}  g5 {[%clk 0:02:53]} 10. Bg3 {[%clk 0:02:58]}  g4 {[%clk 0:02:53]} 11. Nd2 {[%clk 0:02:48]}  Ndxe5 {[%clk 0:02:52]} 12. Bb5 {[%clk 0:02:47]}  Bd7 {[%clk 0:02:41]} 13. Bxc6 {[%clk 0:02:42]}  Nxc6 {[%clk 0:02:40]} 14. Qxg4 {[%clk 0:02:34]}  Qg5 {[%clk 0:02:39]} 15. Qxg5 {[%clk 0:02:31]}  hxg5 {[%clk 0:02:40]} 16. Nb5 {[%clk 0:02:30]}  f5 {[%clk 0:02:27]} 17. Nd6+ {[%clk 0:01:56]}  Ke7 {[%clk 0:01:42]} 18. Nxb7 {[%clk 0:01:54]}  Bd4 {[%clk 0:01:42]} 19. Bd6+ {[%clk 0:01:50]}  Kf6 {[%clk 0:01:37]} 20. c3 {[%clk 0:01:50]}  Bb6 {[%clk 0:01:27]} 21. Nc5 {[%clk 0:01:44]}  Bc8 {[%clk 0:01:26]} 22. Ndb3 {[%clk 0:01:37]}  Rd8 {[%clk 0:01:23]} 23. Bg3 {[%clk 0:01:06]}  f4 {[%clk 0:01:22]} 24. h4 {[%clk 0:01:04]}  fxg3 {[%clk 0:01:13]} 25. fxg3+ {[%clk 0:01:02]}  Kg6 {[%clk 0:00:54]} 26. hxg5 {[%clk 0:00:59]}  Na5 {[%clk 0:00:53]} 0-1


[Site "https://www.chess.com"]

[Event "Titled Tuesday Blitz February 14 Late 2023"]
[White "Piriflillo"]
[Black "O`Gorman, Tom"]
[BlackFideId "2508249"]
[WhiteElo "2322"]
[BlackElo "2355"]
[Result "1/2-1/2"]
[Round "04"]
[TimeControl "180+2"]
[Date "2023.02.14"]
[WhiteClock "0:00:21"]
[BlackClock "0:00:25"]

1. d4 {[%clk 0:03:00]}  d5 {[%clk 0:02:58]} 2. c4 {[%clk 0:03:01]}  e6 {[%clk 0:02:59]} 3. Nc3 {[%clk 0:03:01]}  Nf6 {[%clk 0:02:58]} 4. Bg5 {[%clk 0:03:01]}  Be7 {[%clk 0:02:57]} 5. e3 {[%clk 0:03:01]}  O-O {[%clk 0:02:57]} 6. Bd3 {[%clk 0:03:00]}  Nbd7 {[%clk 0:02:57]} 7. Nf3 {[%clk 0:02:59]}  dxc4 {[%clk 0:02:57]} 8. Bxc4 {[%clk 0:02:58]}  a6 {[%clk 0:02:56]} 9. O-O {[%clk 0:02:56]}  b5 {[%clk 0:02:56]} 10. Bd3 {[%clk 0:02:56]}  Bb7 {[%clk 0:02:56]} 11. Rc1 {[%clk 0:02:52]}  c5 {[%clk 0:02:56]} 12. dxc5 {[%clk 0:02:51]}  Nxc5 {[%clk 0:02:52]} 13. Bc2 {[%clk 0:02:51]}  Qb6 {[%clk 0:02:51]} 14. Qe2 {[%clk 0:02:35]}  Rac8 {[%clk 0:02:46]} 15. a3 {[%clk 0:02:30]}  h6 {[%clk 0:02:46]} 16. Bf4 {[%clk 0:02:27]}  Nd5 {[%clk 0:02:42]} 17. Nxd5 {[%clk 0:02:24]}  Bxd5 {[%clk 0:02:43]} 18. Nd2 {[%clk 0:02:17]}  Bf6 {[%clk 0:02:39]} 19. e4 {[%clk 0:02:12]}  Bb7 {[%clk 0:02:39]} 20. e5 {[%clk 0:02:09]}  Be7 {[%clk 0:02:39]} 21. Be3 {[%clk 0:02:05]}  Qc6 {[%clk 0:02:16]} 22. f3 {[%clk 0:02:05]}  Qd5 {[%clk 0:01:54]} 23. Ne4 {[%clk 0:01:57]}  Qxe5 {[%clk 0:01:21]} 24. f4 {[%clk 0:01:41]}  Qd5 {[%clk 0:01:01]} 25. Rfd1 {[%clk 0:01:39]}  Qc4 {[%clk 0:00:57]} 26. Bd3 {[%clk 0:01:27]}  Nxd3 {[%clk 0:00:45]} 27. Rxc4 {[%clk 0:01:26]}  bxc4 {[%clk 0:00:46]} 28. Nf2 {[%clk 0:01:20]}  Nxf2 {[%clk 0:00:44]} 29. Bxf2 {[%clk 0:01:18]}  Bd5 {[%clk 0:00:43]} 30. Bd4 {[%clk 0:01:14]}  Bc5 {[%clk 0:00:40]} 31. Bxc5 {[%clk 0:01:12]}  Rxc5 {[%clk 0:00:41]} 32. Qe3 {[%clk 0:01:13]}  Rb5 {[%clk 0:00:41]} 33. Qd4 {[%clk 0:00:58]}  Rfb8 {[%clk 0:00:39]} 34. Rd2 {[%clk 0:00:56]}  Rb3 {[%clk 0:00:39]} 35. f5 {[%clk 0:00:49]}  h5 {[%clk 0:00:36]} 36. f6 {[%clk 0:00:47]}  g6 {[%clk 0:00:35]} 37. Qf4 {[%clk 0:00:44]}  Kh7 {[%clk 0:00:35]} 38. Qc7 {[%clk 0:00:35]}  R8b7 {[%clk 0:00:34]} 39. Qd8 {[%clk 0:00:33]}  Rb8 {[%clk 0:00:32]} 40. Qe7 {[%clk 0:00:29]}  R3b7 {[%clk 0:00:31]} 41. Qd6 {[%clk 0:00:28]}  Rb6 {[%clk 0:00:25]} 42. Qc7 {[%clk 0:00:25]}  R6b7 {[%clk 0:00:25]} 43. Qd6 {[%clk 0:00:22]}  Rb6 {[%clk 0:00:25]} 44. Qc7 {[%clk 0:00:21]}  R6b7 {[%clk 0:00:25]} 45. Qd6 {[%clk 0:00:21]} 1/2-1/2


[Site "https://www.chess.com"]

[Event "Titled Tuesday Blitz February 14 Late 2023"]
[White "Bilan, Danila"]
[Black "Guzman Moneo, Alberto"]
[WhiteFideId "24161918"]
[BlackFideId "2209616"]
[WhiteElo "2303"]
[BlackElo "2170"]
[Result "0-1"]
[Round "04"]
[TimeControl "180+2"]
[Date "2023.02.14"]
[WhiteClock "0:00:07"]
[BlackClock "0:00:38"]

1. d4 {[%clk 0:03:00]}  Nf6 {[%clk 0:02:59]} 2. Nf3 {[%clk 0:02:55]}  c5 {[%clk 0:02:59]} 3. e3 {[%clk 0:02:54]}  g6 {[%clk 0:02:58]} 4. c4 {[%clk 0:02:51]}  Bg7 {[%clk 0:02:58]} 5. Nc3 {[%clk 0:02:52]}  O-O {[%clk 0:02:57]} 6. Be2 {[%clk 0:02:51]}  cxd4 {[%clk 0:02:56]} 7. Nxd4 {[%clk 0:02:51]}  d5 {[%clk 0:02:57]} 8. O-O {[%clk 0:02:46]}  Nc6 {[%clk 0:02:53]} 9. b3 {[%clk 0:02:32]}  Nxd4 {[%clk 0:02:50]} 10. exd4 {[%clk 0:02:31]}  dxc4 {[%clk 0:02:43]} 11. bxc4 {[%clk 0:02:30]}  Bf5 {[%clk 0:02:39]} 12. Be3 {[%clk 0:02:23]}  Ne4 {[%clk 0:02:32]} 13. Nxe4 {[%clk 0:01:59]}  Bxe4 {[%clk 0:02:33]} 14. Bd3 {[%clk 0:01:43]}  Bxd3 {[%clk 0:02:27]} 15. Qxd3 {[%clk 0:01:44]}  Rc8 {[%clk 0:02:23]} 16. Rab1 {[%clk 0:01:40]}  b6 {[%clk 0:02:18]} 17. d5 {[%clk 0:01:36]}  Qc7 {[%clk 0:02:10]} 18. Rbc1 {[%clk 0:01:31]}  Rfd8 {[%clk 0:02:09]} 19. Rfd1 {[%clk 0:01:24]}  Qd7 {[%clk 0:02:05]} 20. g3 {[%clk 0:01:18]}  h5 {[%clk 0:02:01]} 21. Qe4 {[%clk 0:01:11]}  Bf6 {[%clk 0:01:58]} 22. Kg2 {[%clk 0:01:10]}  Kg7 {[%clk 0:01:56]} 23. h4 {[%clk 0:01:10]}  Re8 {[%clk 0:01:46]} 24. Bd4 {[%clk 0:01:03]}  Qd6 {[%clk 0:01:42]} 25. Re1 {[%clk 0:01:00]}  Kg8 {[%clk 0:01:34]} 26. c5 {[%clk 0:00:50]}  bxc5 {[%clk 0:01:32]} 27. Bxf6 {[%clk 0:00:45]}  Qxf6 {[%clk 0:01:30]} 28. Rc4 {[%clk 0:00:43]}  Qd6 {[%clk 0:01:24]} 29. Re3 {[%clk 0:00:38]}  Rc7 {[%clk 0:01:20]} 30. Rd3 {[%clk 0:00:27]}  Rd8 {[%clk 0:01:19]} 31. Rcc3 {[%clk 0:00:23]}  Qf6 {[%clk 0:01:14]} 32. f4 {[%clk 0:00:23]}  Rd6 {[%clk 0:01:07]} 33. Qe5 {[%clk 0:00:22]}  Kg7 {[%clk 0:01:04]} 34. Kf3 {[%clk 0:00:21]}  Rdd7 {[%clk 0:00:57]} 35. Ke4 {[%clk 0:00:21]}  Rd6 {[%clk 0:00:54]} 36. Rc4 {[%clk 0:00:19]}  Rdd7 {[%clk 0:00:52]} 37. Rdc3 {[%clk 0:00:17]}  e6 {[%clk 0:00:44]} 38. d6 {[%clk 0:00:09]}  Rc6 {[%clk 0:00:41]} 39. Rxc5 {[%clk 0:00:07]}  Rcxd6 {[%clk 0:00:39]} 40. Qxf6+ {[%clk 0:00:07]}  Kxf6 {[%clk 0:00:40]} 41. Rc7 {[%clk 0:00:07]}  Rd4+ {[%clk 0:00:40]} 42. Ke3 {[%clk 0:00:07]}  Rxc7 {[%clk 0:00:39]} 43. Rxc7 {[%clk 0:00:07]}  Ra4 {[%clk 0:00:40]} 44. Rc2 {[%clk 0:00:07]}  Ra3+ {[%clk 0:00:40]} 45. Kf2 {[%clk 0:00:07]}  a5 {[%clk 0:00:40]} 46. Rb2 {[%clk 0:00:07]}  a4 {[%clk 0:00:40]} 47. Kg2 {[%clk 0:00:06]}  Kf5 {[%clk 0:00:40]} 48. Kf2 {[%clk 0:00:07]}  e5 {[%clk 0:00:39]} 49. fxe5 {[%clk 0:00:07]}  Kxe5 {[%clk 0:00:40]} 50. Rb5+ {[%clk 0:00:08]}  Kf6 {[%clk 0:00:40]} 51. Rb2 {[%clk 0:00:09]}  Kf5 {[%clk 0:00:40]} 52. Rb5+ {[%clk 0:00:09]}  Kg4 {[%clk 0:00:39]} 53. Rb4+ {[%clk 0:00:09]}  Kh3 {[%clk 0:00:39]} 54. Rb2 {[%clk 0:00:05]}  Rxg3 {[%clk 0:00:38]} 55. Rb1 {[%clk 0:00:05]}  Rg2+ {[%clk 0:00:38]} 56. Kf3 {[%clk 0:00:04]}  Rxa2 {[%clk 0:00:38]} 57. Rh1+ {[%clk 0:00:04]}  Rh2 {[%clk 0:00:38]} 58. Ra1 {[%clk 0:00:05]}  Kxh4 {[%clk 0:00:35]} 59. Rxa4+ {[%clk 0:00:06]}  Kg5 {[%clk 0:00:36]} 60. Ra5+ {[%clk 0:00:06]}  Kh6 {[%clk 0:00:36]} 61. Kf4 {[%clk 0:00:07]}  Rh4+ {[%clk 0:00:36]} 62. Ke5 {[%clk 0:00:07]}  Rg4 {[%clk 0:00:37]} 63. Kf6 {[%clk 0:00:07]}  Rf4+ {[%clk 0:00:37]} 64. Ke5 {[%clk 0:00:07]}  Rf5+ {[%clk 0:00:38]} 0-1


[Site "https://www.chess.com"]

[Event "Titled Tuesday Blitz February 14 Late 2023"]
[White "Cruz Gomez, Miguel Angel"]
[Black "Bolourchifard, Farzad"]
[WhiteFideId "5137160"]
[BlackFideId "12510084"]
[WhiteElo "1950"]
[BlackElo "2292"]
[Result "0-1"]
[Round "04"]
[TimeControl "180+2"]
[Date "2023.02.14"]
[WhiteClock "0:00:15"]
[BlackClock "0:00:16"]

1. e4 {[%clk 0:03:00]}  e5 {[%clk 0:03:00]} 2. Bc4 {[%clk 0:03:00]}  Nf6 {[%clk 0:02:59]} 3. d3 {[%clk 0:03:00]}  Bc5 {[%clk 0:02:59]} 4. Nc3 {[%clk 0:03:00]}  d6 {[%clk 0:03:00]} 5. f4 {[%clk 0:03:01]}  Nc6 {[%clk 0:03:00]} 6. f5 {[%clk 0:02:51]}  Na5 {[%clk 0:02:55]} 7. Qf3 {[%clk 0:02:48]}  a6 {[%clk 0:02:32]} 8. Nge2 {[%clk 0:02:35]}  b5 {[%clk 0:02:32]} 9. Bb3 {[%clk 0:02:35]}  Nxb3 {[%clk 0:02:32]} 10. axb3 {[%clk 0:02:34]}  Bb7 {[%clk 0:02:32]} 11. Bg5 {[%clk 0:02:33]}  c6 {[%clk 0:02:10]} 12. g4 {[%clk 0:02:26]}  d5 {[%clk 0:01:59]} 13. Ng3 {[%clk 0:01:46]}  Qd6 {[%clk 0:01:35]} 14. Bd2 {[%clk 0:01:05]}  O-O-O {[%clk 0:01:04]} 15. O-O-O {[%clk 0:00:27]}  Qc7 {[%clk 0:00:35]} 16. g5 {[%clk 0:00:26]}  Ne8 {[%clk 0:00:35]} 17. Nh5 {[%clk 0:00:27]}  Bb4 {[%clk 0:00:29]} 18. Rhe1 {[%clk 0:00:22]}  d4 {[%clk 0:00:25]} 19. Ne2 {[%clk 0:00:22]}  Bxd2+ {[%clk 0:00:20]} 20. Rxd2 {[%clk 0:00:23]}  c5 {[%clk 0:00:20]} 21. Kb1 {[%clk 0:00:22]}  Kb8 {[%clk 0:00:19]} 22. Nc1 {[%clk 0:00:20]}  Rc8 {[%clk 0:00:19]} 23. Ng3 {[%clk 0:00:20]}  Nd6 {[%clk 0:00:19]} 24. h4 {[%clk 0:00:21]}  Qb6 {[%clk 0:00:18]} 25. h5 {[%clk 0:00:18]}  Rc7 {[%clk 0:00:18]} 26. h6 {[%clk 0:00:18]}  g6 {[%clk 0:00:18]} 27. fxg6 {[%clk 0:00:18]}  fxg6 {[%clk 0:00:18]} 28. Rf2 {[%clk 0:00:16]}  Rhc8 {[%clk 0:00:16]} 29. Qg2 {[%clk 0:00:16]}  c4 {[%clk 0:00:16]} 30. dxc4 {[%clk 0:00:16]}  bxc4 {[%clk 0:00:16]} 31. bxc4 {[%clk 0:00:16]}  Nxc4 {[%clk 0:00:17]} 32. Nd3 {[%clk 0:00:14]}  Ne3 {[%clk 0:00:16]} 33. Rxe3 {[%clk 0:00:14]}  dxe3 {[%clk 0:00:16]} 34. Rf6 {[%clk 0:00:15]}  Qd4 {[%clk 0:00:14]} 35. Qe2 {[%clk 0:00:15]}  Rxc2 {[%clk 0:00:14]} 36. Qxc2 {[%clk 0:00:15]}  Rxc2 {[%clk 0:00:15]} 37. Kxc2 {[%clk 0:00:15]}  Qc4+ {[%clk 0:00:16]} 0-1


[Site "https://www.chess.com"]

[Event "Titled Tuesday Blitz February 14 Late 2023"]
[White "Mayaud, Raphael"]
[Black "Firat, Burak"]
[WhiteFideId "627151"]
[BlackFideId "6305881"]
[WhiteElo "2201"]
[BlackElo "2456"]
[Result "0-1"]
[Round "04"]
[TimeControl "180+2"]
[Date "2023.02.14"]
[WhiteClock "0:00:01"]
[BlackClock "0:02:13"]

1. d4 {[%clk 0:03:00]}  Nf6 {[%clk 0:03:00]} 2. Bg5 {[%clk 0:03:00]}  e6 {[%clk 0:02:59]} 3. e4 {[%clk 0:02:59]}  h6 {[%clk 0:03:00]} 4. Bxf6 {[%clk 0:02:59]}  Qxf6 {[%clk 0:03:01]} 5. c3 {[%clk 0:02:59]}  Qd8 {[%clk 0:03:02]} 6. Nd2 {[%clk 0:02:59]}  d5 {[%clk 0:02:59]} 7. Bd3 {[%clk 0:02:59]}  c5 {[%clk 0:02:58]} 8. exd5 {[%clk 0:02:53]}  Qxd5 {[%clk 0:02:57]} 9. Qf3 {[%clk 0:02:39]}  Qxf3 {[%clk 0:02:49]} 10. Ngxf3 {[%clk 0:02:39]}  Nc6 {[%clk 0:02:50]} 11. dxc5 {[%clk 0:02:33]}  Bxc5 {[%clk 0:02:51]} 12. O-O {[%clk 0:02:30]}  Ke7 {[%clk 0:02:47]} 13. Ne4 {[%clk 0:02:30]}  Bb6 {[%clk 0:02:47]} 14. Rad1 {[%clk 0:02:19]}  Rd8 {[%clk 0:02:46]} 15. Bc2 {[%clk 0:02:18]}  Bd7 {[%clk 0:02:44]} 16. Nd6 {[%clk 0:02:01]}  Rab8 {[%clk 0:02:43]} 17. Rfe1 {[%clk 0:01:47]}  a6 {[%clk 0:02:41]} 18. Nc4 {[%clk 0:01:33]}  Bc7 {[%clk 0:02:40]} 19. Nce5 {[%clk 0:01:28]}  Nxe5 {[%clk 0:02:39]} 20. Nxe5 {[%clk 0:01:28]}  Be8 {[%clk 0:02:39]} 21. f4 {[%clk 0:01:03]}  Rxd1 {[%clk 0:02:34]} 22. Rxd1 {[%clk 0:01:02]}  g5 {[%clk 0:02:30]} 23. g3 {[%clk 0:00:56]}  f6 {[%clk 0:02:24]} 24. Nd3 {[%clk 0:00:16]}  Bb5 {[%clk 0:02:23]} 25. fxg5 {[%clk 0:00:15]}  hxg5 {[%clk 0:02:24]} 26. Kg2 {[%clk 0:00:14]}  Bc6+ {[%clk 0:02:21]} 27. Kg1 {[%clk 0:00:14]}  Bb6+ {[%clk 0:02:17]} 28. Nf2 {[%clk 0:00:13]}  Rh8 {[%clk 0:02:16]} 29. Rd2 {[%clk 0:00:11]}  f5 {[%clk 0:02:16]} 30. Bb3 {[%clk 0:00:10]}  Kf6 {[%clk 0:02:13]} 31. Re2 {[%clk 0:00:10]}  e5 {[%clk 0:02:14]} 32. Bc4 {[%clk 0:00:04]}  e4 {[%clk 0:02:13]} 33. g4 {[%clk 0:00:03]}  f4 {[%clk 0:02:13]} 34. Kf1 {[%clk 0:00:01]}  Bxf2 {[%clk 0:02:12]} 35. Rxf2 {[%clk 0:00:01]}  e3 {[%clk 0:02:13]} 0-1


[Site "https://www.chess.com"]